Cogmind - Beta 11.1 @@@ ROGUE MODE // 2022.09.29 @ 21:28:21 Player: Mombamambo Result: Self-destructed Performance ------------- Evolutions (2) 1000 Regions Visited (4) 800 Robots Destroyed (25) 125 Value Destroyed (657) 657 Prototype IDs (11) 220 Alien Tech Used (0) 0 Bonus (0) 0 TOTAL SCORE: 2802 Bonus ------- None Cogmind --------- Core Integrity 348/550 Matter 300/300 Energy 290/290 System Corruption 0% Temperature Cool (0) Movement Rolling (105) Ox1 Location -8/Materials Parts ------- > --- POWER (1) -------- Improved Deuterium Engine > --- PROPULSION (3) --- Armored Treads Armored Wheel Armored Wheel > --- UTILITY (4) ------ Improved Heat Sink Small Storage Unit Machine Analyzer Force Booster > --- WEAPON (3) ------- Ion Cannon Enhanced Autogun Mining Claw > --- INVENTORY (8) ---- Improved Deuterium Engine Improved Deuterium Engine Surge Thruster Faulty Improved VTOL Module Peak State ------------ > --- POWER ------------ Improved Deuterium Engine > --- PROPULSION ------- Armored Wheel Armored Wheel Armored Wheel > --- UTILITY ---------- Improved Heat Sink Machine Analyzer Force Booster Hardened Light Armor Plating > --- WEAPON ----------- Shock Rifle Enhanced Autogun Mining Claw > --- INVENTORY -------- Improved Deuterium Engine Armored Wheel Surge Thruster Improved VTOL Module [Rating: 31] Favorites ----------- Power Light Ion Engine Engine Light Ion Engine Power Core Light Nuclear Core Propulsion Armored Wheel Treads Armored Treads Leg Aluminum Leg Wheel Armored Wheel Flight Unit Flight Unit Utility Small Storage Unit Device Force Booster Storage Small Storage Unit Processor Machine Analyzer Protection Hardened Light Armor Plating Weapon Mining Claw Energy Gun EM Pulse Gun Energy Cannon Ion Cannon Ballistic Gun Enhanced Autogun Launcher Grenade Launcher Special Weapon Mining Laser Slashing Weapon Mining Claw Special Melee Weapon Datajack Build | -11 -10 -9 -9 -8 ------- Run | Scr Mat Mat Min Mat Slots Evolved 4 | . . 2 . 2 Power . | . . . . . Propulsion 1 | . . 1 . . Utility 2 | . . . . 2 Weapon 1 | . . 1 . . Parts Attached 46 | 6 3 2 11 24 Power 5 | 1 . . 2 2 Engine 4 | 1 . . 2 1 Core 1 | . . . . 1 Reactor . | . . . . . Propulsion 16 | 2 1 1 4 8 Treads 1 | . . . . 1 Leg 3 | 2 1 . . . Wheel 11 | . . . 4 7 Hover . | . . . . . Flight 1 | . . 1 . . Utility 12 | 1 2 . 2 7 Device 3 | . . . 1 2 Storage 3 | 1 . . 1 1 Processor 4 | . 1 . . 3 Hackware . | . . . . . Protection 2 | . 1 . . 1 Artifact . | . . . . . Weapon 13 | 2 . 1 3 7 Energy Gun 3 | 2 . . . 1 Energy Cannon 1 | . . . . 1 Ballistic Gun 3 | . . 1 . 2 Ballistic Cannon . | . . . . . Launcher 1 | . . . . 1 Special Weapon 3 | . . . 2 1 Impact Weapon . | . . . . . Slashing Weapon 1 | . . . . 1 Piercing Weapon . | . . . . . Special Melee Weapon 1 | . . . 1 . Unidentified Prototypes 1 | . . . . 1 Parts Lost 22 | . . 1 16 5 Power 3 | . . . 3 . Propulsion 9 | . . 1 6 2 Utility 4 | . . . 2 2 Weapon 6 | . . . 5 1 Highest Loss Streak 9 | . . 1 9 2 To Critical Strikes . | . . . . . Average Slot Usage (%) 86 | . 91 100 53 91 Engine 7 | . 14 11 4 4 Core 1 | . . . . 2 Leg 11 | . 28 22 7 . Wheel 13 | . . . 10 25 Device 3 | . . . . 7 Storage 9 | . 14 11 8 6 Processor 6 | . . . . 12 Protection 5 | . 5 11 3 6 Energy Gun 12 | . 28 22 7 3 Energy Cannon 1 | . . . . 2 Ballistic Gun 3 | . . 11 3 4 Launcher 1 | . . . . 3 Special Weapon 2 | . . . 6 2 Slashing Weapon 4 | . . . . 9 Naked Turns . | . . . . . Heaviest Build 33 | 12 15 16 18 33 Greatest Support 36 | 20 20 20 36 36 Greatest Overweight (x) 1 | . . . 1 1 Average Overweight (x) . | . . . . . Largest Inventory Capacity 8 | 8 8 8 8 8 Average Capacity 7 | 6 8 8 7 7 Most Carried 8 | . 5 4 4 8 Average Carried 4 | . 3 3 3 5 Final Capacity 8 | 8 8 8 8 8 Final Carried 5 | . 5 3 3 4 Class Distribution -------------------- 81% | Mutant 9% | Tank 8% | Scavenger-Mutant Dominant Class ---------------- Mutant | -10/Materials Tank | -9/Materials Mutant | -9/Mines Mutant | -8/Materials Resources | -11 -10 -9 -9 -8 ----------- Run | Scr Mat Mat Min Mat Matter Collected 679 | 187 103 20 62 307 Remotely . | . . . . . Salvage Created 999 | . 201 . . 798 Parts 48 | . 13 . . 35 Haulers Intercepted 2 | . 1 . . 1 Recyclers Shooed . | . . . . . Parts Field Recycled . | . . . . . Retrieved Matter . | . . . . . Parts Self-Destructed . | . . . . . Prevented . | . . . . . Kills | -11 -10 -9 -9 -8 ------- Run | Scr Mat Mat Min Mat Combat Hostiles Destroyed 16 | . 4 . 1 11 Melee 5 | . . . . 5 Guns 4 | . 4 . . . Cannons 2 | . . . 1 1 AOE 5 | . . . . 5 Classes Destroyed 9 | . 5 . 1 3 Worker 1 | . 1 . . . Builder 2 | . 1 . . 1 Tunneler 1 | . . . . 1 Hauler 2 | . 1 . . 1 Recycler 3 | . . . . 3 Operator 1 | . . . . 1 Swarmer 3 | . 3 . . . Grunt 12 | . 1 . . 11 Assembled 1 | . . . 1 . Best Kill Streak 6 | . 3 . 1 6 Combat Bots Only 5 | . 3 . 1 5 Max Kills in Single Turn 2 | . 1 . 1 2 Gunslinging . | . . . . . Exploded 2 | . . . . 2 Melee 1 | . . . . 1 Uniques/NPCs Destroyed . | . . . . . Combat | -11 -10 -9 -9 -8 -------- Run | Scr Mat Mat Min Mat Damage Taken 2400 | . 82 87 1131 1100 Core 628 | . 27 31 368 202 Absorbed by Shields . | . . . . . Core Remaining (%) 63 | 100 89 . . . Volleys Fired 44 | . 20 . 10 14 Largest 3 | . 2 . 3 2 Hottest 160 | . 90 . 160 110 Shots Fired 83 | . 40 . 17 26 Gun 63 | . 40 . 9 14 Cannon 6 | . . . . 6 Launcher 6 | . . . . 6 Special 8 | . . . 8 . Kinetic 12 | . . . 4 8 Thermal 36 | . 20 . 10 6 Explosive 6 | . . . . 6 Electromagnetic 29 | . 20 . 3 6 Robot Hit Streak 10 | . 4 . 10 6 Robot Miss Streak 4 | . 2 . 3 4 Penetration Max . | . . . . . Secondary Targets . | . . . . . Shots Hit Robots 83 | . 24 . 10 49 Core Hits 49 | . 9 . 7 33 Critical Kills . | . . . . . Critical Parts Destroyed . | . . . . . Critical Strikes 2 | . 1 . 1 . Burn 2 | . 1 . 1 . Melee Attacks 55 | . . . . 55 Impact . | . . . . . Slashing 55 | . . . . 55 Piercing . | . . . . . Sneak Attacks 10 | . . . . 10 Combat Hostiles . | . . . . . Follow-up Attacks . | . . . . . Damage Inflicted 2234 | . 314 . 141 1779 Guns 539 | . 314 . 85 140 Cannons 114 | . . . . 114 Explosions 398 | . . . . 398 Melee 1127 | . . . . 1127 Ramming 8 | . . . 8 . Kinetic 113 | . . . 28 85 Thermal 353 | . 166 . 73 114 Explosive 398 | . . . . 398 Electromagnetic 235 | . 148 . 32 55 Impact . | . . . . . Slashing 1127 | . . . . 1127 Piercing . | . . . . . Highest Corruption 29 | . . . 29 . Average Corruption 16 | . . . 16 . Corruption Purged . | . . . . . Corruption Blocked . | . . . . . Effects 3 | . . . 3 . Message Errors 1 | . . . 1 . Matter Fused 1 | . . . 1 . Data Loss (minor) 1 | . . . 1 . Overload Shots . | . . . . . Overflow Damage 56 | . . . . 56 Projectiles . | . . . . . Explosions . | . . . . . Melee 56 | . . . . 56 Knockbacks . | . . . . . Impact . | . . . . . Kinetic . | . . . . . Secondary . | . . . . . Self-Inflicted Damage 50 | . . . 4 46 Shots 1 | . . . . 1 Rammed 3 | . . . 3 . Targets Rammed 3 | . . . 3 . Kicked . | . . . . . Crushed . | . . . . . Highest Temperature 195 | . 195 . 110 117 Average Temperature 59 | . 66 . 64 43 Received Heat Transfer 714 | . 12 27 . 675 Siege Activations . | . . . . . Robots Corrupted . | . . . . . Combat Hostiles . | . . . . . Parts Fried . | . . . . . Impact Corruptions . | . . . . . Robots Melted . | . . . . . Combat Hostiles . | . . . . . Parts Melted . | . . . . . Heat Transferred 988 | . 555 . 248 185 Parts Sabotaged . | . . . . . Parts Stolen . | . . . . . Parts Stripped . | . . . . . Power Chain Reactions . | . . . . . Missiles Intercepted . | . . . . . Alert | -11 -10 -9 -9 -8 ------- Run | Scr Mat Mat Min Mat Peak Influence 240 | . 160 20 30 240 Initial 5 | . . 5 3 . Average 64 | . 41 8 3 111 Maximum Alert Level 1 | . . . . 1 Low Security (%) 87 | 100 100 100 100 72 Level 1 12 | . . . . 27 Level 2 . | . . . . . Level 3 . | . . . . . Level 4 . | . . . . . Level 5 . | . . . . . High Security . | . . . . . Max Security . | . . . . . Squads Dispatched 6 | . 2 . . 4 Investigation 4 | . 2 . . 2 Extermination . | . . . . . Reinforcement 1 | . . . . 1 Assault . | . . . . . Garrison 1 | . . . . 1 Intercept . | . . . . . Searches Triggered . | . . . . . Construction Impeded . | . . . . . Haulers Reinforced . | . . . . . Active Scanning Responses . | . . . . . Cargo Convoy Interrupts . | . . . . . Stealth | -11 -10 -9 -9 -8 --------- Run | Scr Mat Mat Min Mat Distress Signals 3 | . 1 . . 2 Communications Jammed . | . . . . . Distress Signals . | . . . . . Times Spotted 41 | . 6 1 13 21 Peak Tracking Total 6 | . 3 1 6 6 Tactical Retreats 7 | . 1 . 2 4 Traps | -11 -10 -9 -9 -8 ------- Run | Scr Mat Mat Min Mat Traps Triggered 3 | . 3 . . . Indirectly . | . . . . . Trap Hack Attempts . | . . . . . Triggered . | . . . . . Disarmed . | . . . . . Reprogrammed . | . . . . . Reused . | . . . . . Traps Extracted . | . . . . . Installed . | . . . . . Triggered . | . . . . . Machines | -11 -10 -9 -9 -8 ---------- Run | Scr Mat Mat Min Mat Machines Disabled 2 | . . . . 2 Max in Single Turn 1 | . . . . 1 Garrison Access 1 | . . . . 1 Machines Sabotaged . | . . . . . Garrisons Compromised . | . . . . . Overloaded Fab Kills . | . . . . . Hacking | -11 -10 -9 -9 -8 --------- Run | Scr Mat Mat Min Mat Machines Accessed 15 | . 7 1 . 7 Terminals 12 | . 6 1 . 5 Fabricators . | . . . . . Repair Stations . | . . . . . Recycling Units 2 | . 1 . . 1 Scanalyzers . | . . . . . Garrison Access 1 | . . . . 1 Total Hacks 45 | . 22 2 . 21 Successful 24 | . 11 2 . 11 Failed 21 | . 11 . . 10 Catastrophic 1 | . 1 . . . Database Lockouts . | . . . . . Manual 15 | . 8 1 . 6 Terminals 39 | . 21 2 . 16 Fabricators . | . . . . . Repair Stations . | . . . . . Recycling Units 3 | . 1 . . 2 Scanalyzers . | . . . . . Garrison Access 3 | . . . . 3 Terminal Hacks 18 | . 9 2 . 7 Record 1 | . 1 . . . Prototype ID Bank 7 | . 3 2 . 2 Emergency Access Points 6 | . 2 . . 4 Alert Level 1 | . . . . 1 Patrol Status 1 | . 1 . . . Recall Investigation 1 | . 1 . . . Zone Layout 1 | . 1 . . . Fabricator Hacks . | . . . . . Repair Station Hacks . | . . . . . Recycling Unit Hacks 3 | . 1 . . 2 Report Inventory 2 | . 1 . . 1 Retrieve Components 1 | . . . . 1 Scanalyzer . | . . . . . Garrison Access Hacks 1 | . . . . 1 Seal Access 1 | . . . . 1 Unauthorized Hacks 2 | . 1 . . 1 Terminals 2 | . 1 . . 1 Operators 2 | . 1 . . 1 Fabricators . | . . . . . Repair Stations . | . . . . . Recycling Units . | . . . . . Scanalyzers . | . . . . . Garrison Access . | . . . . . Data Cores Recovered . | . . . . . Used . | . . . . . Hacking Detections 11 | . 6 1 . 4 Full Trace Events 2 | . . . . 2 Feedback Events . | . . . . . Feedback Blocked . | . . . . . Robot Schematics Acquired . | . . . . . Robots Built . | . . . . . Authchips . | . . . . . Time . | . . . . . Total Robot Build Rating . | . . . . . Part Schematics Acquired . | . . . . . Parts Built . | . . . . . Authchips . | . . . . . Time . | . . . . . Total Part Build Rating . | . . . . . Parts Repaired . | . . . . . Time . | . . . . . Parts Recycled . | . . . . . Recycled Matter . | . . . . . Retrieved Matter . | . . . . . Retrieved Components 9 | . . . . 9 Parts Scanalyzed . | . . . . . Part Schematics Acquired . | . . . . . Parts Damaged . | . . . . . Bothacking | -11 -10 -9 -9 -8 ------------ Run | Scr Mat Mat Min Mat Used RIF Installer . | . . . . . Robots Hacked . | . . . . . Non-combat . | . . . . . Combat . | . . . . . Robot Hacks Applied . | . . . . . Relay Couplers Released . | . . . . . Fabnet Peak Effective % . | . . . . . Robots Rewired . | . . . . . Allies Hacked . | . . . . . Hacks Repelled . | . . . . . Allies | -11 -10 -9 -9 -8 -------- Run | Scr Mat Mat Min Mat Total Allies 1 | . . . 1 . Largest Group 1 | . . . 1 . Highest-Rated Group 31 | . . . 31 . Highest-Rated Ally 31 | . . . 31 . Total Orders . | . . . . . Ally Attacks 5 | . . . 5 . Total Damage 43 | . . . 43 . Kills . | . . . . . Allies Corrupted . | . . . . . Allies Melted . | . . . . . Intel | -11 -10 -9 -9 -8 ------- Run | Scr Mat Mat Min Mat Robot Analysis Total . | . . . . . Derelict Logs Recovered 1 | . . . 1 . Drone Launches . | . . . . . Drone Recoveries . | . . . . . Exploration | -11 -10 -9 -9 -8 ------------- Run | Scr Mat Mat Min Mat Turns Passed 1628 | 54 479 101 249 745 Spaces Moved 1186 | 38 329 83 203 533 Core 57 | 1 . . 54 2 Treads . | . . . . . Legs 509 | 37 329 83 60 . Wheels 620 | . . . 89 531 Hover . | . . . . . Flight . | . . . . . Fastest Speed 50 | 50 120 120 50 80 Average Speed 101 | 118 120 120 88 90 Slowest Speed 120 | 120 120 120 120 105 Overloaded Moves . | . . . . . Propulsion Burnouts . | . . . . . Robots Hopped . | . . . . . Cave-ins Triggered . | . . . . . Exploration Rate (%) 27 | 3 55 6 42 31 Regions Visited 4 Branch Regions 1 Pre-discovered Areas . | . . . . . Known Exits Taken . | . . . . . Unknown Exits Taken 4 | 1 1 1 1 . Scrap Searched . | . . . . . Spaces Dug . | . . . . . Terrain Destroyed 12 | . . . 1 11 Melee . | . . . . . Projectile 1 | . . . 1 . AOE 11 | . . . . 11 Terrain Rammed . | . . . . . Walls Destroyed . | . . . . . Machines Disabled . | . . . . . Actions | -11 -10 -9 -9 -8 --------- Run | Scr Mat Mat Min Mat Total 1396 | 44 372 84 238 658 Wait 31 | 1 15 . 7 8 Move 1182 | 37 328 82 202 533 Hop . | . . . . . Pick Up 21 | . 5 . 3 13 Fast Attach 31 | 6 3 . 8 14 Attach 11 | . . 2 3 6 Detach . | . . . . . Swap 4 | . . . . 4 Drop 14 | . 1 . 2 11 Fire 44 | . 20 . 10 14 Melee 55 | . . . . 55 Ram 3 | . . . 3 . Kick . | . . . . . Crush . | . . . . . Escape Stasis . | . . . . . Rewire . | . . . . . Trap . | . . . . . Miscellaneous . | . . . . . Route ------- -11/Scrapyard -10/Materials -9/Materials -9/Mines -8/Materials History --------- Turn | Location | Event 2 | -11/Scrapyard | Met Revision 17 6 | -11/Scrapyard | Discovered new exit (range 16) 55 | -11/Scrapyard | Entered Materials 332 | -10/Materials | Build established: Mutant 511 | -10/Materials | Discovered new exit (range 4) 534 | -10/Materials | Entered another Materials area 534 | -9/Materials | Evolved 2 slots: Propulsion x1, Weapon x1 566 | -9/Materials | Discovered new exit (range 9) 635 | -9/Materials | Entered Mines 636 | -9/Mines | Assembled infested the area 638 | -9/Mines | Received a Mining Laser from a helpful Derelict 644 | -9/Mines | Learned Materials security intel 755 | -9/Mines | Lost 7 parts (2p2n1u2w) 850 | -9/Mines | System corruption reached 10% 858 | -9/Mines | Discovered new exit (range 15) 860 | -9/Mines | Core integrity fell below 50% 873 | -9/Mines | Core integrity fell below 20% 884 | -9/Mines | Entered Materials 884 | -8/Materials | Evolved 2 slots: Utility x2 909 | -8/Materials | Lost 9 parts (1p4n1u3w) 1285 | -8/Materials | Garrison activated, responded to threat 1629 | -8/Materials | Self-destructed Last Messages --------------- Wheel (80%) Sml. Storage Unit (87%) Wheel (97%) Aluminum Leg (78%) >>Retrieve(Components) Retrieving 9 components... Sml. Storage Unit Wheel Aluminum Leg Wheel Wheel Imp. Deuterium Engine Lgt. Ion Engine Wheel Aluminum Leg 01564_ Acquired Imp. Deuterium Engine. 01567_ Acquired Sml. Storage Unit. 01570_ Acquired 30 matter. 01583_ R-06 Scavenger collects Lgt. Nuclear Core. 01616_ K-01 Serf cleans the Terminal. Map ----- +----------------------------------------------------+ | ???????????????????????? #?""" """? ?# """" #??? | | ???????????????????????? #?"R? """ ?+ """" #??? | | ?????????????????????? #?"""? """ ??# #??? | | ?????????????????????? #?????? ???# !#??? | | ?????????????????????? #########+#####! ???? | | ???###############+####+###"T"## ## ###+###??? | | ???# # #??? | | #### + #??? | | ## # ||# ########??? | | ## # """ "" | # #?????? | | ## #!= """ "" ! ! #| """ #?????? | | ########+######%! """ " # """ #?????? | | ####### % # """ #?????? | | % # #?????? | | #### ########"T"#T# ##+###### = #?????? | | ####+##+###??########## # #########?????? | | # #??# # # #?????????????? | | # #??# """ + # """ #?????????????? | | + #??# """ # # """ #?????????????? | | # #??# """ # # """ #?????????????? | | # #??# # # """ #?????????????? | | # #??# """ " # # #?????????????? | | # #??# """ T # # """ #?????????????? | | # #??# """ " # # """ #?????????????? | | % ###########??# # # """ #?????????????? | | #?????????????#########@ # """? #?????????????? | | ########??????????????# # """? #?????????????? | | #! == #??????????????#g # ???? ??????????????? | | #[!= = #??????????????# ##???????????????????? | | #![==*=#??????????????# #????????????????????? | | #%"Y"= #??##########??# #????????????????????? | | %#!""" #??# #??# #????????????????????? | | =+%= [#??# """" #??# #????????????????????? | | *########??# """" #### #####????????????????? | | #?????????# ] """" # #????????????????? | | #?????????# + #????????????????? | | #?????????# """" # #?"""?"""????????? | | #?????????# """" # #### +?"""?"""????????? | | #???""""??# """" # #??? #?"""?"""????????? | | #???""""??# # #??? #????????????????? | | #???""""??########## #???? #????????????????? | | #??????????????????# #???? ????????????????? | | #???""""???????????# #????? ???????????????? | | #???""""???????????# #?????? ??????????????? | | #???""""???????????# #????????##?????????????? | | #??????????????????# #???????????????????????? | | ###+####???????????# #???????????????????????? | | #???????????# #???????????????????????? | | #####???????# #???????????????????????? | | !!#???????# #???????????????????????? | +----------------------------------------------------+ Best States ------------- Heat Dissipation 45 Energy Generation 16 Energy Capacity 290 Matter Stores 300 Matter Capacity 300 Sight Range 16 Terrain Scan Density 10 Armor Coverage 150 Evasion (%) 55 Force Boost 20 Item Schematics ----------------- None Robot Schematics ------------------ None Fabricated ------------ Nothing Alien Tech Used ----------------- None Achievements -------------- None Challenges ------------ None Game ------ Seed SlugPhysicsReactor Manual? 0 Play Time 00:38:03 Cumulative 39.2 hours Start 2022.08.28 @ 21:53:07 End 2022.09.29 @ 21:28:21 Sessions 3 Manual Loads 0 Difficulty Rogue Special Mode None Game No. 27 Rogue 27 Adventurer 0 Explorer 0 Win Type - Total 0 Types 0/0/0/0/0/0/0/0/0 Lore% 30 Gallery% 45 Achievement% 33 Wizard Run 0 Options --------- ASCII 0 Keyboard 0 Movement Mouse Keybinds 0 Fullscreen 1 Font 18/SmallcapsGlow Map View 76x50 Tactical HUD 1 Map Filters NONE Filters NONE Steam 1 RUN: d2b6e686-a78a-4113-9620-47d55ef951d3